[Event "Marshall CC U2400 February 2024"]
[Site "New York"]
[Date "2024.02.19"]
[Round "5.2"]
[White "Gutnik, Aleksandr"]
[Black "Rosenthal, Max Manuel"]
[Result "*"]
[ECO "C67"]
[WhiteElo "1956"]
[BlackElo "1949"]
[Annotator "COMBH"]
[PlyCount "115"]
[EventDate "2024.02.16"]
[EventType "swiss"]
[EventCountry "USA"]
[SourceTitle "playchess.com"]
[Source "ChessBase"]
[SourceQuality "1"]
[TimeControl "5400+30"]

1. e4 {[%emt 0:00:03]} e5 {[%emt 0:00:05]} 2. Nf3 {[%emt 0:00:07]} Nc6 {[%emt 0:00:03]} 3. Bb5 {[%emt 0:00:09]} Nf6 {[%emt 0:00:04]} 4. O-O {[%emt 0:00:53]} Nxe4 {[%emt 0:00:05]} 5. d4 {[%emt 0:00:07]} Nd6 {[%emt 0:00:12]} 6. Bxc6 {[%emt 0:00:32]} dxc6 {[%emt 0:00:05]} 7. dxe5 {[%emt 0:00:09]} Nf5 {[%emt 0:00:07]} 8. Qxd8+ {[%emt 0:00:07]} Kxd8 {[%emt 0:00:07]} 9. h3 {[%emt 0:01:05]} h5 {[%emt 0:02:05]} 10. Nc3 {[%emt 0:01:30]} Ke8 {[%emt 0:01:00]} 11. Ne4 {[%emt 0:01:45]} Be6 {[%emt 0:00:39]} 12. Bg5 {[%emt 0:02:09]} h4 {[%emt 0:02:48]} 13. a3 {[%emt 0:02:44]} b6 {[%emt 0:00:32]} 14. Rad1 {[%emt 0:00:46]} Be7 {[%emt 0:01:32]} 15. Rfe1 {[%emt 0:03:56]} Rd8 {[%emt 0:02:19]} 16. c3 {[%emt 0:05:42]} Rxd1 {[%emt 0:10:13]} 17. Rxd1 {[%emt 0:00:10]} Bd5 {[%emt 0:00:19]} 18. Nfd2 {[%emt 0:09:52]} Bxg5 {[%emt 0:04:12]} 19. Nxg5 {[%emt 0:00:10]} Rh5 {[%emt 0:00:52]} 20. Ngf3 {[%emt 0:02:48]} Ne7 {[%emt 0:00:53]} 21. c4 {[%emt 0:05:16]} Be6 {[%emt 0:00:18]} 22. Re1 {[%emt 0:00:47]} Ng6 {[%emt 0:00:24]} 23. b3 {[%emt 0:01:27]} a5 {[%emt 0:00:41]} 24. a4 {[%emt 0:00:14]} Nf4 {[%emt 0:07:11]} 25. Re3 {[%emt 0:02:29]} Bf5 {[%emt 0:04:35]} 26. Nd4 {[%emt 0:03:59]} Rg5 {[%emt 0:00:37]} 27. Nxf5 {[%emt 0:01:10]} Rxf5 {[%emt 0:00:17]} 28. Nf3 {[%emt 0:01:22]} Ng6 {[%emt 0:02:15]} 29. Re4 {[%emt 0:04:14]} Kd7 {[%emt 0:05:11]} 30. Nxh4 {[%emt 0:03:02]} Nxh4 {[%emt 0:09:35]} 31. Rxh4 {[%emt 0:00:11]} Rxe5 {[%emt 0:00:05]} 32. Rh7 {[%emt 0:04:47]} Re1+ {[%emt 0:17:06]} 33. Kh2 {[%emt 0:00:09]} Re2 {[%emt 0:00:03]} 34. Rxg7 {[%emt 0:07:21]} Rxf2 {[%emt 0:00:05]} 35. h4 {[%emt 0:02:14]} Ke7 {[%emt 0:04:22]} 36. Rg3 {[%emt 0:01:08]} Kf8 {[%emt 0:07:10]} 37. Kh3 {[%emt 0:00:42]} Rf6 {[%emt 0:01:28]} 38. h5 {[%emt 0:02:15]} b5 {[%emt 0:02:50]} 39. Rg5 {[%emt 0:01:07]} bxc4 {[%emt 0:04:13]} 40. bxc4 {[%emt 0:00:09]} Rf4 {[%emt 0:00:37]} 41. Rc5 {[%emt 0:04:40]} f5 {[%emt 0:01:36]} 42. Rxc6 {[%emt 0:01:01]} Kg7 {[%emt 0:00:11]} 43. g3 {[%emt 0:02:00]} Rd4 {[%emt 0:03:12]} 44. Kg2 {[%emt 0:04:53]} Re4 {[%emt 0:01:55]} 45. Kf3 {[%emt 0:00:29]} Rd4 {[%emt 0:00:07]} 46. Rxc7+ {[%emt 0:01:13]} Kh6 {[%emt 0:00:16]} 47. Rc5 {[%emt 0:00:38]} Kg5 {[%emt 0:00:04]} 48. h6 {[%emt 0:00:55]} Rd3+ {[%emt 0:00:04]} 49. Kf2 {[%emt 0:01:24]} Rd2+ {[%emt 0:00:20]} 50. Ke3 {[%emt 0:00:22]} Rh2 {[%emt 0:00:04]} 51. Kf3 {[%emt 0:02:10]} Rxh6 {[%emt 0:00:04]} 52. Rxa5 {[%emt 0:00:16]} Rh1 {[%emt 0:01:16]} 53. Ra8 {[%emt 0:01:54]} Rf1+ {[%emt 0:00:12]} 54. Ke3 {[%emt 0:00:25]} Kg4 {[%emt 0:00:59]} 55. Rg8+ {[%emt 0:00:16]} Kh3 {[%emt 0:00:07]} 56. Rg5 {[%emt 0:00:50]} Ra1 {[%emt 0:00:41]} 57. Rxf5 {[%emt 0:00:19]} Kxg3 {[%emt 0:00:41]} 58. Rg5+ {[%emt 0:00:32]} *

[Event "Marshall CC U2400 February 2024"]
[Site "New York"]
[Date "2024.02.19"]
[Round "5.3"]
[White "Ng, Timothy"]
[Black "Ulloa Grez, Luis"]
[Result "1-0"]
[ECO "C10"]
[WhiteElo "1728"]
[BlackElo "2048"]
[Annotator "NA RC"]
[PlyCount "109"]
[EventDate "2024.02.16"]
[EventType "swiss"]
[EventCountry "USA"]
[SourceTitle "playchess.com"]
[Source "ChessBase"]
[SourceQuality "1"]
[TimeControl "5400+30"]

1. e4 {[%emt 0:00:19]} e6 {[%emt 0:00:06]} 2. d4 {[%emt 0:00:05]} d5 {[%emt 0:00:02]} 3. Nd2 {[%emt 0:00:05]} dxe4 {[%emt 0:01:15]} 4. Nxe4 {[%emt 0:00:39]} Be7 {[%emt 0:00:06]} 5. Nf3 {[%emt 0:00:16]} Nf6 {[%emt 0:01:11]} 6. Nxf6+ {[%emt 0:00:22]} Bxf6 {[%emt 0:00:05]} 7. Bd3 {[%emt 0:00:24]} c5 {[%emt 0:02:51]} 8. c3 {[%emt 0:01:05]} cxd4 {[%emt 0:03:14]} 9. Nxd4 {[%emt 0:02:10]} O-O {[%emt 0:03:06]} 10. O-O {[%emt 0:00:51]} e5 {[%emt 0:03:44]} 11. Nb3 $11 {[%emt 0:04:46]} Bg5 {[%emt 0:07:06]} 12. Qf3 {[%emt 0:08:15]} Qf6 {[%emt 0:10:53]} 13. Bxg5 {[%emt 0:04:34]} Qxg5 {[%emt 0:00:05]} 14. Nc5 {[%emt 0:01:04]} Nc6 {[%emt 0:05:23]} 15. Be4 {[%emt 0:05:07]} Bg4 {[%emt 0:00:33]} 16. Qg3 {[%emt 0:01:36]} f5 {[%emt 0:12:52]} 17. Bxc6 {[%emt 0:04:42]} bxc6 {[%emt 0:00:54]} 18. Ne6 {[%emt 0:02:49]} Qf6 {[%emt 0:01:37]} 19. Nxf8 {[%emt 0:00:33]} Rxf8 {[%emt 0:00:03]} 20. f3 {[%emt 0:01:54]} Bh5 {[%emt 0:00:06]} 21. Rfe1 {[%emt 0:00:58]} f4 {[%emt 0:01:57]} 22. Qf2 {[%emt 0:00:28]} Qg5 {[%emt 0:01:40]} 23. Kh1 {[%emt 0:00:29]} Bg6 {[%emt 0:03:47]} 24. Qc5 {[%emt 0:02:07]} Rf5 {[%emt 0:00:59]} 25. Qxc6 {[%emt 0:02:15]} h6 {[%emt 0:00:06]} 26. Rad1 {[%emt 0:01:36]} Kh7 {[%emt 0:00:50]} 27. Qb7 {[%emt 0:05:17]} Qh4 {[%emt 0:00:44]} 28. Qxa7 {[%emt 0:04:27]} e4 {[%emt 0:00:51]} 29. fxe4 {[%emt 0:02:46]} Rf7 {[%emt 0:03:17]} 30. Qd4 {[%emt 0:02:18]} f3 {[%emt 0:03:37]} 31. g3 {[%emt 0:01:10]} Qh5 {[%emt 0:02:35]} 32. Qf2 {[%emt 0:00:39]} Qe5 {[%emt 0:01:44]} 33. Rd5 {[%emt 0:01:24]} Qe6 {[%emt 0:00:15]} 34. b3 {[%emt 0:01:27]} Qg4 {[%emt 0:01:04]} 35. Rd4 {[%emt 0:00:41]} Re7 {[%emt 0:00:21]} 36. e5 {[%emt 0:01:14]} Qh5 {[%emt 0:00:29]} 37. e6 {[%emt 0:01:27]} Bf5 {[%emt 0:00:28]} 38. Rd7 {[%emt 0:02:19]} Re8 {[%emt 0:00:29]} 39. Rd6 {[%emt 0:01:56]} Re7 {[%emt 0:00:27]} 40. Kg1 {[%emt 0:00:30]} Bg4 {[%emt 0:00:16]} 41. c4 {[%emt 0:01:10]} Qe8 {[%emt 0:00:29]} 42. Qe3 {[%emt 0:00:46]} h5 {[%emt 0:00:27]} 43. Kf2 {[%emt 0:01:11]} Qg6 {[%emt 0:00:23]} 44. Qe4 {[%emt 0:04:51]} Bf5 {[%emt 0:00:05]} 45. Qxf3 {[%emt 0:00:46]} Qg5 {[%emt 0:00:22]} 46. Re5 {[%emt 0:01:37]} g6 {[%emt 0:00:11]} 47. Rd7 {[%emt 0:00:35]} Rxd7 {[%emt 0:00:03]} 48. exd7 {[%emt 0:00:09]} Qd2+ {[%emt 0:00:07]} 49. Re2 {[%emt 0:00:32]} Qxd7 {[%emt 0:00:08]} 50. Qd5 {[%emt 0:00:53]} Qa7+ {[%emt 0:00:05]} 51. Kg2 {[%emt 0:00:55]} Bc8 {[%emt 0:00:23]} 52. h3 {[%emt 0:01:49]} Qg7 {[%emt 0:00:15]} 53. Kh2 {[%emt 0:00:23]} Bf5 {[%emt 0:00:13]} 54. Qe5 {[%emt 0:00:15]} Qh6 {[%emt 0:00:06]} 55. Qc7+ {[%emt 0:00:00]} 1-0

[Event "Marshall CC U2400 February 2024"]
[Site "New York"]
[Date "2024.02.19"]
[Round "5.4"]
[White "Slesinski, Matthew"]
[Black "Schaefer, Sasha Milo"]
[Result "1-0"]
[ECO "B12"]
[WhiteElo "1676"]
[BlackElo "1633"]
[Annotator "NA RC"]
[PlyCount "49"]
[EventDate "2024.02.16"]
[EventType "swiss"]
[EventCountry "USA"]
[SourceTitle "playchess.com"]
[Source "ChessBase"]
[SourceQuality "1"]
[TimeControl "5400+30"]

1. e4 {[%emt 0:01:16]} c6 {[%emt 0:00:01]} 2. d4 {[%emt 0:00:27]} d5 {[%emt 0:00:02]} 3. f3 {[%emt 0:00:04]} Qb6 {[%emt 0:00:06]} 4. Nc3 {[%emt 0:00:18]} dxe4 {[%emt 0:00:20]} 5. fxe4 {[%emt 0:00:10]} e5 {[%emt 0:00:05]} 6. Qh5 {[%emt 0:19:33]} exd4 {[%emt 0:05:35]} 7. Bc4 {[%emt 0:01:25]} Qc7 {[%emt 0:00:23]} 8. Nce2 {[%emt 0:02:30]} Nf6 {[%emt 0:00:48]} 9. Qh4 {[%emt 0:02:26]} Qe5 {[%emt 0:02:43]} 10. Bf4 {[%emt 0:08:14]} Qxe4 {[%emt 0:01:55]} 11. O-O-O {[%emt 0:01:00]} Bd6 {[%emt 0:06:36]} 12. Nf3 {[%emt 0:09:57]} Bxf4+ {[%emt 0:02:15]} 13. Nxf4 {[%emt 0:00:26]} O-O {[%emt 0:05:23]} 14. Rxd4 {[%emt 0:01:51]} Qf5 {[%emt 0:01:20]} 15. Re1 {[%emt 0:09:35]} Qg4 {[%emt 0:07:36]} 16. Qf2 {[%emt 0:02:06]} Nbd7 {[%emt 0:03:09]} 17. Ne6 {[%emt 0:03:01]} Qf5 {[%emt 0:01:39]} 18. Nxf8 {[%emt 0:01:09]} Nxf8 {[%emt 0:00:15]} 19. Re5 {[%emt 0:02:18]} Qg6 {[%emt 0:01:40]} 20. Rd8 {[%emt 0:04:11]} Qh6+ {[%emt 0:06:05]} 21. Ng5 {[%emt 0:02:10]} Be6 {[%emt 0:01:52]} 22. Rxa8 {[%emt 0:01:34]} Bxc4 {[%emt 0:04:47]} 23. Rxf8+ {[%emt 0:01:12]} Kxf8 {[%emt 0:00:02]} 24. Qc5+ {[%emt 0:00:10]} Kg8 {[%emt 0:00:07]} 25. Qxc4 {[%emt 0:00:12]} 1-0

[Event "Marshall CC U2400 February 2024"]
[Site "New York"]
[Date "2024.02.19"]
[Round "5.5"]
[White "Lu, Dazhen"]
[Black "Qiao, Richardson Jingsi"]
[Result "1-0"]
[ECO "A39"]
[WhiteElo "1595"]
[BlackElo "1564"]
[Annotator "NA RC"]
[PlyCount "55"]
[EventDate "2024.02.16"]
[EventType "swiss"]
[EventCountry "USA"]
[SourceTitle "playchess.com"]
[Source "ChessBase"]
[SourceQuality "1"]
[TimeControl "5400+30"]

1. Nf3 {[%emt 0:00:02]} Nf6 {[%emt 0:00:22]} 2. g3 {[%emt 0:00:09]} g6 {[%emt 0:00:28]} 3. Bg2 {[%emt 0:00:05]} Bg7 {[%emt 0:00:40]} 4. O-O {[%emt 0:00:19]} O-O {[%emt 0:00:41]} 5. c4 {[%emt 0:00:20]} c5 {[%emt 0:00:39]} 6. Nc3 {[%emt 0:05:23]} Nc6 {[%emt 0:03:39]} 7. d4 {[%emt 0:09:52]} cxd4 {[%emt 0:01:47]} 8. Nxd4 {[%emt 0:00:03]} e6 {[%emt 0:01:14]} 9. Ndb5 {[%emt 0:03:57]} Ne8 {[%emt 0:01:47]} 10. Bf4 {[%emt 0:06:33]} a6 {[%emt 0:03:43]} 11. Nd6 {[%emt 0:02:40]} Bxc3 {[%emt 0:05:23]} 12. bxc3 {[%emt 0:00:28]} Nxd6 {[%emt 0:00:57]} 13. Bxd6 {[%emt 0:09:23]} Re8 {[%emt 0:01:50]} 14. a4 {[%emt 0:04:49]} Qf6 {[%emt 0:12:08]} 15. Qd3 {[%emt 0:02:37]} Kg7 {[%emt 0:01:29]} 16. f4 {[%emt 0:07:05]} Qd8 {[%emt 0:02:59]} 17. e4 {[%emt 0:04:41]} e5 {[%emt 0:02:56]} 18. f5 {[%emt 0:06:56]} Qf6 {[%emt 0:00:44]} 19. fxg6 {[%emt 0:02:11]} Qxg6 {[%emt 0:00:52]} 20. c5 {[%emt 0:03:23]} a5 {[%emt 0:02:31]} 21. Rf5 {[%emt 0:02:53]} Re6 {[%emt 0:01:23]} 22. Raf1 {[%emt 0:04:06]} f6 {[%emt 0:00:31]} 23. Bh3 {[%emt 0:00:56]} b6 {[%emt 0:01:09]} 24. R5f2 {[%emt 0:01:58]} Ba6 {[%emt 0:00:55]} 25. Qd5 {[%emt 0:08:46]} Rae8 {[%emt 0:01:59]} 26. Bxe6 {[%emt 0:00:34]} Rxe6 {[%emt 0:00:17]} 27. Rb1 {[%emt 0:04:42]} bxc5 {[%emt 0:01:16]} 28. Bxc5 {[%emt 0:00:23]} 1-0